fUSD/lending_fUSD_20260217
["ID","MTS","AMOUNT","RATE_DAILY","PERIOD"]
[405791339,1771312250935,-1275.0,0.0001919,2]
[405791340,1771312250945,-350.0,0.00019211,2]
[405791341,1771312250956,-500.0,0.00019285,30]
[405791342,1771312250966,-500.0,0.00019285,30]
[405791343,1771312250976,-500.0,0.00019285,30]
[405791344,1771312250986,-616.35430946,0.00019285,30]
[405791345,1771312250996,-500.0,0.0001929,2]
[405791346,1771312251006,-350.0,0.0001929,2]
[405791347,1771312251016,-504.52861774,0.00019534,60]
[405791348,1771312251026,-1071.00918263,0.000196,2]
[405791349,1771312251036,-1045.38386714,0.000196,2]
[405791350,1771312251046,-1029.32798135,0.000196,2]
[405791351,1771312251056,-1098.31453498,0.000196,2]
[405791352,1771312251066,-1098.44179142,0.000196,2]
[405791353,1771312251076,-1185.13965002,0.000196,2]
[405791354,1771312251090,-1500.0,0.00019644,7]
[405791355,1771312251101,-168.0,0.00019681,2]
[405791356,1771312251112,-654.39,0.00019691,2]
[405791357,1771312251123,-502.0,0.00019864,4]
[405791358,1771312251133,-1085.33227358,0.00019894,2]
[405791359,1771312251143,-1033.11129161,0.00019894,2]
[405791360,1771312251154,-1019.91968586,0.00019894,2]
[405791361,1771312251164,-1055.47613997,0.00019894,2]
[405791362,1771312251175,-1041.06986321,0.00019894,2]
[405791363,1771312251185,-1094.28679336,0.00019894,2]
[405791364,1771312251195,-1111.46908089,0.00019894,2]
[405791365,1771312251205,-1025.25425567,0.00019894,2]
[405791366,1771312251214,-1108.71835747,0.00019894,2]
[405791367,1771312251224,-1023.89740548,0.00019894,2]
[405791368,1771312251234,-1119.14987818,0.00019894,2]
[405791369,1771312251244,-1143.36879218,0.00019894,2]
[405791370,1771312251254,-1125.9163403,0.00019894,2]
[405791371,1771312251264,-1097.21099794,0.00019894,2]
[405791372,1771312251274,-1092.6749638,0.00019894,2]
[405791373,1771312251284,-1134.09296494,0.00019894,2]
[405791374,1771312251295,-4936.26071306,0.000199,3]
[405791375,1771312251304,-1751.06105486,0.00019918,2]
[405791376,1771312251315,-1209.0,0.00019958,2]
[405791377,1771312251325,-412.0,0.00019958,2]
[405791378,1771312251335,-5973.0,0.00019958,2]
[405791379,1771312251346,-360.45457926,0.0002,30]
[405791380,1771312251356,-62293.42808638,0.0002,30]
[405791381,1771312251366,-16081.08653714,0.0002,2]
[405791382,1771312251376,-2464.68,0.0002,2]
[405791383,1771312251386,-3950.0,0.0002,2]
[405791384,1771312251396,-22549.36528526,0.0002,14]
[405791385,1771312251407,-1297.79050701,0.0002,2]
[405791386,1771312251417,-1000.0,0.0002,7]
[405791387,1771312251429,-260.06972769,0.0002,30]
[405791388,1771312251439,-2870.8241158,0.0002,2]
[405791389,1771312251449,-12956.49713374,0.0002,2]
[405791390,1771312251459,-154.76427951,0.0002,2]
[405791391,1771312251468,-2000.0,0.0002,10]
[405791392,1771312251478,-461.91028707,0.0002,2]
[405791393,1771312251487,-355.8013884,0.0002,2]
[405791394,1771312251498,-160.0,0.0002,30]
[405791395,1771312251509,-165.68,0.0002,30]
[405791396,1771312251519,-173.57638878,0.0002,30]
[405791397,1771312251530,-1751.06105486,0.0002,2]
[405791398,1771312251540,-725.127793,0.0002,2]
[405791399,1771312251551,-150.19189643,0.0002,20]
[405791400,1771312251563,-200.0,0.0002,2]
[405791401,1771312251572,-324.65365302,0.0002,2]
[405791402,1771312251583,-200.0,0.0002,2]
[405791403,1771312251593,-8720.0,0.0002001,2]
[405791404,1771312251603,-1751.06105486,0.00020082,2]
[405791405,1771312251613,-500.0,0.00020097,30]
[405791406,1771312251623,-500.0,0.00020097,30]
[405791407,1771312251634,-500.0,0.00020097,30]
[405791408,1771312251644,-500.0,0.00020097,30]
[405791409,1771312251655,-500.0,0.00020097,30]
[405791410,1771312251664,-500.0,0.00020097,30]
[405791411,1771312251677,-500.0,0.00020097,30]
[405791412,1771312251687,-500.0,0.00020097,30]
[405791413,1771312251697,-500.0,0.00020097,30]
[405791414,1771312251707,-453.21457922,0.00020097,30]
[405791415,1771312251717,-1751.06105486,0.00020164,2]
[405791416,1771312251727,-1751.06105486,0.00020247,2]
[405791417,1771312251738,-151.0,0.00020299,2]
[405791418,1771312252019,-2794.0419256,0.000203,7]
[405791419,1771312252029,-978.26463129,0.000203,120]
[405791420,1771312252039,-325.93822264,0.000203,2]
[405791421,1771312252049,-162.96911132,0.000203,2]
[405791422,1771312252059,-162.80410305,0.000203,2]
[405791423,1771312252069,-153.97009568,0.000203,2]
[405791424,1771312252079,-1751.06105486,0.00020329,2]
[405791425,1771312252093,-1634.63926674,0.0002041,30]
[405791426,1771312252104,-1751.06105486,0.00020411,2]
[405791427,1771312252114,-1751.06105486,0.00020493,2]
[405791428,1771312252124,-184.25171928,0.000205,2]
[405791429,1771312252134,-461.91028707,0.00020514,9]
[405791430,1771312252144,-355.8013884,0.00020526,9]
[405791431,1771312252153,-155.48,0.00020548,2]
[405791432,1771312252165,-1751.06105486,0.00020575,2]
[405791433,1771312252177,-502.0,0.0002058,5]
[405791434,1771312252187,-275.22486912,0.00020584,5]
[405791435,1771312252196,-160.0,0.000206,30]
[405791436,1771312252206,-173.57638878,0.000206,30]
[405791437,1771312252216,-1751.06105486,0.00020658,2]
[405791438,1771312252226,-22723.22913216,0.000207,2]
[405791439,1771312252236,-1751.06105486,0.00020712,2]
[405791440,1771312252246,-1500.0,0.0002074,7]
[405791441,1771312252255,-1751.06105486,0.00020795,2]
[405791442,1771312252265,-250.0,0.00020818,35]
[405791443,1771312252275,-250.0,0.00020818,35]
[405791444,1771312252284,-250.0,0.00020818,35]
[405791445,1771312252294,-250.0,0.00020818,35]
[405791446,1771312252303,-250.0,0.00020818,35]
[405791447,1771312252314,-250.0,0.00020818,35]
[405791448,1771312252324,-282.0,0.00020818,35]
[405791449,1771312252333,-394016.25324193,0.000209,30]
[405791450,1771312252342,-250.0,0.000209,35]
[405791451,1771312252352,-250.0,0.000209,35]
[405791452,1771312252362,-250.0,0.000209,35]
[405791453,1771312252372,-319.0,0.000209,35]
[405791454,1771312252381,-384.0,0.00020955,35]
[405791455,1771312252391,-250.0,0.00020982,35]
[405791456,1771312252401,-250.0,0.00020982,35]
[405791457,1771312252411,-212.0,0.00020982,35]
[405791458,1771312252420,-666.0,0.00020999,2]
[405791459,1771312252431,-20000.0,0.00021,2]
[405791460,1771312252441,-40000.0,0.00021,2]
[405791461,1771312252451,-1197.0004507,0.00021,2]
[405791462,1771312252460,-197.57488137,0.00021,2]
[405791463,1771312252470,-78143.76832471,0.00021,2]
[405791464,1771312252480,-173.57638878,0.00021,30]
[405791465,1771312252489,-400.0,0.00021,2]
[405791466,1771312252499,-373.67913322,0.00021,5]
[405791467,1771312252509,-461.91028707,0.00021028,17]
[405791468,1771312252519,-230.0,0.00021037,35]
[405791469,1771312252528,-355.8013884,0.00021052,17]
[405791470,1771312252538,-150.0,0.00021078,7]
[405791471,1771312252547,-153.0,0.00021119,35]
[405791472,1771312252557,-500.0,0.0002114,2]
[405791473,1771312252567,-500.0,0.0002123,2]
[405791474,1771312252576,-500.0,0.00021288,7]
[405791475,1771312252586,-500.0,0.00021288,7]
[405791476,1771312252595,-502.0,0.00021295,5]
[405791477,1771312252606,-1501.1,0.000213,2]
[405791478,1771312252615,-583.69347785,0.00021352,7]
[405791479,1771312252625,-160.57318335,0.00021398,2]
[405791480,1771312252634,-1088.37215301,0.00021419,2]
[405791481,1771312252644,-666.0,0.00021499,2]
[405791482,1771312252653,-57726.48600323,0.000215,2]
[405791483,1771312252663,-461.91028707,0.00021541,25]
[405791484,1771312252672,-355.8013884,0.00021578,25]
[405791485,1771312252682,-1500.0,0.00021836,7]
[405791486,1771312252692,-1358.4670696,0.00021862,2]
[405791487,1771312252702,-2316.8,0.000219,7]
[405791488,1771312252711,-3043.88,0.00021918,2]
[405791489,1771312252722,-5000.0,0.00021918,2]
[405791490,1771312252731,-4070.51,0.00021918,30]
[405791491,1771312252741,-151.0,0.00021918,2]
[405791492,1771312252750,-151.0,0.00021918,2]
[405791493,1771312252760,-151.0,0.00021918,2]
[405791494,1771312252770,-500.0,0.00021918,2]
[405791495,1771312252779,-500.0,0.00021918,2]
[405791496,1771312252789,-573.45760824,0.00021973,2]
[405791497,1771312252798,-616.27940406,0.00021973,2]
[405791498,1771312252808,-504.09468333,0.00021973,2]
[405791499,1771312252817,-500.0,0.00021973,2]
[405791500,1771312252827,-500.0,0.00021973,2]
[405791501,1771312252837,-501.35605949,0.00021973,2]
[405791502,1771312252847,-500.99019732,0.00021973,2]
[405791503,1771312252862,-436.04334629,0.00021973,2]
[405791504,1771312252874,-500.0,0.00021973,2]
[405791505,1771312252885,-509.85751715,0.00021973,2]
[405791506,1771312252895,-508.22453373,0.00021973,2]
[405791507,1771312252906,-502.88998638,0.00021973,2]
[405791508,1771312252917,-588.14229004,0.00021973,2]
[405791509,1771312252927,-501.26419244,0.00021973,2]
[405791510,1771312252938,-500.0,0.00021973,2]
[405791511,1771312252949,-500.0,0.00021973,2]
[405791512,1771312252959,-168.45138887,0.00021973,2]
[405791513,1771312252969,-501.78719611,0.00021973,2]
[405791514,1771312252980,-500.0,0.00021973,2]
[405791515,1771312252991,-502.37992604,0.00021973,2]
[405791516,1771312253001,-163.14629325,0.00021973,2]
[405791517,1771312253012,-310.16973746,0.00021973,2]
[405791518,1771312253024,-502.53760547,0.00021973,2]
[405791519,1771312253035,-502.80271569,0.00021973,2]
[405791520,1771312253045,-500.0,0.00021973,2]
[405791521,1771312253056,-504.66274009,0.00021973,2]
[405791522,1771312253066,-504.49684223,0.00021973,2]
[405791523,1771312253076,-500.0,0.00021973,2]
[405791524,1771312253090,-500.0,0.00021973,2]
[405791525,1771312253101,-300.0,0.00021999,2]
[405791526,1771312253112,-666.0,0.00021999,2]
[405791527,1771312253122,-266.45,0.00022,7]
[405791528,1771312253134,-500.0,0.00022,2]
[405791529,1771312253145,-212046.95439905,0.00022,4]
[405791530,1771312253155,-197.70910267,0.00022,120]
[405791531,1771312253165,-3852.03307706,0.00022,2]
[405791532,1771312253176,-315.07,0.00022,2]
[405791533,1771312253187,-502.0,0.00022011,6]
[405791534,1771312253197,-500.0,0.00022028,2]
[405791535,1771312253207,-571.52386176,0.00022028,2]
[405791536,1771312253223,-461.91028707,0.00022055,32]
[405791537,1771312253234,-500.0,0.00022082,2]
[405791538,1771312253245,-610.67,0.000221,120]
[405791539,1771312253255,-506.03,0.000221,120]
[405791540,1771312253266,-355.8013884,0.00022103,32]
[405791541,1771312253276,-500.0,0.00022137,2]
[405791542,1771312253287,-300.0,0.00022189,2]
[405791543,1771312253298,-150.0,0.0002219,2]
[405791544,1771312253309,-150.0,0.0002219,2]
[405791545,1771312253320,-150.0,0.0002219,2]
[405791546,1771312253330,-150.0,0.0002219,2]
[405791547,1771312253341,-150.0,0.0002219,2]
[405791548,1771312253351,-150.0,0.0002219,2]
[405791549,1771312253363,-150.0,0.0002219,2]
[405791550,1771312253373,-150.0,0.0002219,2]
[405791551,1771312253383,-150.0,0.0002219,2]
[405791552,1771312253394,-150.0,0.0002219,2]
[405791553,1771312253404,-3491.0,0.0002219,2]
[405791554,1771312253415,-617.0,0.0002219,2]
[405791555,1771312253426,-1338.0,0.0002219,2]
[405791556,1771312253437,-1164.0,0.0002219,2]
[405791557,1771312253447,-150.0,0.0002219,2]
[405791558,1771312253458,-1275.0,0.0002219,2]
[405791559,1771312253468,-500.0,0.00022192,2]
[405791560,1771312253479,-360.45457926,0.00022222,30]
[405791561,1771312253489,-500.0,0.00022247,2]
[405791562,1771312253500,-1787.76,0.000223,120]
[405791563,1771312253511,-2571.73,0.000223,120]
[405791564,1771312253521,-2179.75,0.000223,120]
[405791565,1771312253532,-500.0,0.00022302,2]
[405791566,1771312253543,-500.0,0.00022356,2]
[405791567,1771312253554,-500.0,0.00022411,2]
[405791568,1771312253570,-7992.92,0.00022466,2]
[405791569,1771312253581,-500.0,0.00022466,2]
[405791570,1771312253591,-300.0,0.00022498,2]
[405791571,1771312253602,-300.0,0.00022499,2]
[405791572,1771312253613,-23598.10797836,0.00022499,7]
[405791573,1771312253625,-35620.91184209,0.000225,2]
[405791574,1771312253636,-1000.0,0.00022521,2]
[405791575,1771312253647,-213.36943428,0.00022521,2]
[405791576,1771312253657,-1000.0,0.00022521,2]
[405791577,1771312253668,-1000.0,0.00022521,2]
[405791578,1771312253679,-1000.0,0.00022521,2]
[405791579,1771312253690,-1000.0,0.00022521,2]
[405791580,1771312253701,-1000.0,0.00022521,2]
[405791581,1771312253712,-500.0,0.00022521,2]
[405791582,1771312253723,-461.91028707,0.00022569,40]
[405791583,1771312253735,-500.0,0.00022576,2]
[405791584,1771312253746,-225.73403839,0.00022597,7]
[405791585,1771312253761,-300.0,0.00022599,2]
[405791586,1771312253772,-3617.89176601,0.000226,2]
[405791587,1771312253783,-544.92,0.000226,60]
[405791588,1771312253794,-355.8013884,0.00022629,40]
[405791589,1771312253804,-500.0,0.0002263,2]
[405791590,1771312253815,-500.0,0.00022685,2]
[405791591,1771312253826,-502.0,0.00022727,7]
[405791592,1771312253836,-303.1149748,0.00022728,2]
[405791593,1771312253847,-500.0,0.0002274,2]
[405791594,1771312253858,-1025.33394229,0.00022754,2]
[405791595,1771312253868,-500.0,0.00022795,2]
[405791596,1771312253878,-500.0,0.0002285,2]
[405791597,1771312253889,-500.0,0.00022904,2]
[405791598,1771312253899,-1500.0,0.00022932,7]
[405791599,1771312253910,-1209.0,0.00022958,2]
[405791600,1771312253921,-412.0,0.00022958,2]
[405791601,1771312253933,-5973.0,0.00022958,2]
[405791602,1771312253947,-170.88899038,0.00022958,2]
[405791603,1771312253958,-500.0,0.00022959,2]
[405791604,1771312253969,-300.45177307,0.00023,12]
[405791605,1771312253980,-304277.15551043,0.00023,2]
[405791606,1771312253991,-160.0,0.00023,3]
[405791607,1771312254001,-450.0,0.00023,2]
[405791608,1771312254012,-160.0,0.00023,2]
[405791609,1771312254023,-173.57638878,0.00023,7]
[405791610,1771312254034,-151.0,0.00023,2]
[405791611,1771312254045,-235.93633334,0.00023,2]
[405791612,1771312254055,-299.0,0.00023,7]
[405791613,1771312254066,-500.0,0.00023014,2]
[405791614,1771312254076,-511.01261154,0.00023068,2]
[405791615,1771312254089,-1500.0,0.00023068,2]
[405791616,1771312254100,-1500.0,0.00023068,2]
[405791617,1771312254111,-1500.0,0.00023068,2]
[405791618,1771312254121,-1510.51189712,0.00023068,2]
[405791619,1771312254133,-500.0,0.00023069,2]
[405791620,1771312254144,-461.91028707,0.00023083,48]
[405791621,1771312254154,-500.0,0.000231,2]
[405791622,1771312254164,-3518.78376292,0.000231,2]
[405791623,1771312254176,-2482.09380603,0.000231,2]
[405791624,1771312254187,-500.0,0.00023123,2]
[405791625,1771312254198,-355.8013884,0.00023155,48]
[405791626,1771312254208,-500.0,0.00023178,2]
[405791627,1771312254218,-170.88899038,0.00023186,2]
[405791628,1771312254228,-151.0,0.000232,2]
[405791629,1771312254239,-151.0,0.000232,2]
[405791630,1771312254248,-151.0,0.000232,2]
[405791631,1771312254258,-492.668276,0.000232,2]
[405791632,1771312254268,-492.668276,0.000232,2]
[405791633,1771312254279,-492.668276,0.000232,2]
[405791634,1771312254289,-492.668276,0.000232,2]
[405791635,1771312254307,-1783.60803,0.000232,2]
[405791636,1771312254326,-1783.60803,0.000232,2]
[405791637,1771312254345,-1783.60803,0.000232,2]
[405791638,1771312254360,-167.064397,0.000232,2]
[405791639,1771312254376,-1783.60803,0.000232,2]
[405791640,1771312254393,-167.064397,0.000232,2]
[405791641,1771312254412,-167.064397,0.000232,2]
[405791642,1771312254429,-167.064397,0.000232,2]
[405791643,1771312254444,-366.471205,0.000232,2]
[405791644,1771312254456,-366.471205,0.000232,2]
[405791645,1771312254471,-366.471205,0.000232,2]
[405791646,1771312254487,-366.471205,0.000232,2]
[405791647,1771312254503,-151.0,0.000232,2]
[405791648,1771312254519,-151.0,0.000232,2]
[405791649,1771312254536,-151.0,0.000232,2]
[405791650,1771312254552,-151.0,0.000232,2]
[405791651,1771312254569,-151.0,0.000232,2]
[405791652,1771312254585,-151.0,0.000232,2]
[405791653,1771312254601,-151.000017,0.000232,2]
[405791654,1771312254617,-500.0,0.00023233,2]
[405791655,1771312254632,-299.0,0.00023288,7]
[405791656,1771312254648,-500.0,0.00023288,2]
[405791657,1771312254669,-500.0,0.00023343,2]
[405791658,1771312254686,-500.0,0.00023397,2]
[405791659,1771312254701,-170.88899038,0.00023413,2]
[405791660,1771312254713,-324.65365302,0.00023421,56]
[405791661,1771312254727,-502.0,0.00023443,7]
[405791662,1771312254743,-500.0,0.00023452,2]
[405791663,1771312254759,-500.0,0.0002348,7]
[405791664,1771312254771,-500.0,0.0002348,7]
[405791665,1771312254783,-500.0,0.00023507,2]
[405791666,1771312254797,-500.0,0.00023562,2]
[405791667,1771312254816,-461.91028707,0.00023597,56]
[405791668,1771312254830,-409.50775716,0.00023616,2]
[405791669,1771312254843,-2000.0,0.00023616,2]
[405791670,1771312254857,-658.35387756,0.00023616,2]
[405791671,1771312254871,-500.0,0.00023617,2]
[405791672,1771312254885,-500.0,0.00023671,2]
[405791673,1771312254898,-355.8013884,0.00023681,56]
[405791674,1771312254914,-153.97009568,0.00023716,56]
[405791675,1771312254929,-616.53250312,0.00023726,2]
[405791676,1771312254944,-325.93822264,0.00023889,56]
[405791677,1771312254959,-3600.0,0.00024,2]
[405791678,1771312254974,-1239.88954826,0.00024,2]
[405791679,1771312254988,-160.0,0.00024,7]
[405791680,1771312255003,-307.16084148,0.00024,30]
[405791681,1771312255018,-160.57318336,0.00024073,2]
[405791682,1771312255033,-461.91028707,0.0002411,63]
[405791683,1771312255049,-502.0,0.00024159,8]
[405791684,1771312255063,-299.0,0.00024164,7]
[405791685,1771312255078,-2500.0,0.00024164,2]
[405791686,1771312255095,-355.8013884,0.00024207,63]
[405791687,1771312255108,-423.59034657,0.0002421,2]
[405791688,1771312255123,-3710.81446639,0.0002421,2]
[405791689,1771312255138,-360.45457926,0.00024444,30]
[405791690,1771312255153,-334.31879463,0.00024484,120]
[405791691,1771312255166,-445.75839284,0.00024484,120]
[405791692,1771312255180,-334.31879463,0.00024484,120]
[405791693,1771312255194,-191.03931121,0.00024484,120]
[405791694,1771312255208,-286.55896682,0.00024484,120]
[405791695,1771312255222,-406815.85,0.000245,2]
[405791696,1771312255236,-266.45,0.000246,7]
[405791697,1771312255251,-461.91028707,0.00024624,71]
[405791698,1771312255266,-864.26,0.00024658,2]
[405791699,1771312255280,-1000.0,0.00024658,2]
[405791700,1771312255295,-151.0,0.00024658,2]
[405791701,1771312255308,-151.0,0.00024658,2]
[405791702,1771312255321,-152.499756,0.00024658,2]
[405791703,1771312255335,-2544.26230201,0.0002469,2]
[405791704,1771312255350,-2514.66080185,0.00024712,2]
[405791705,1771312255363,-355.8013884,0.00024733,71]
[405791706,1771312255377,-218.67906334,0.000248,30]
[405791707,1771312255400,-502.0,0.00024875,9]
[405791708,1771312255418,-1115.75114374,0.00025,2]
[405791709,1771312255432,-207.85277651,0.00025,2]
[405791710,1771312255445,-4738.26130455,0.00025,60]
[405791711,1771312256425,-266.2184697,0.00015472,2]
[405791712,1771312256437,-303.26122484,0.00016,2]
[405791713,1771312256913,-2477.411,0.00016958,2]
[405791714,1771312256955,-2452.0,0.00019958,2]
[405791715,1771312256981,-123159.91971823,0.00025,60]
[405791716,1771312256994,-1787.79999521,0.00025,2]
[405791717,1771312257004,-18505.23820755,0.00025,2]
[405791718,1771312257014,-540.0,0.00025,2]
[405791719,1771312257023,-611.91107535,0.00025,2]
[405791720,1771312257033,-3049.49831659,0.00025,2]
[405791721,1771312257043,-7137.72032147,0.00025,2]
[405791722,1771312257054,-167.59841231,0.00025,2]
[405791723,1771312257063,-171.296778,0.00025,5]
[405791724,1771312257073,-531.0,0.00025,5]
[405791725,1771312257084,-505.1374,0.00025,2]
[405791726,1771312257096,-160.0,0.00025,30]
[405791727,1771312257106,-151.0,0.00025,2]
[405791728,1771312257116,-150.0,0.00025,2]
[405791729,1771312257127,-1849.66947189,0.00025,60]
[405791730,1771312257136,-890.57194181,0.00025,30]
[405791731,1771312257146,-10014.89397927,0.00025,2]
[405791732,1771312257156,-500.0,0.00025,2]
[405791733,1771312257168,-160.0,0.00025,7]
[405791734,1771312257178,-1500.0,0.00025124,7]
[405791735,1771312257187,-461.91028707,0.00025138,79]
[405791736,1771312257198,-150.0,0.0002519,2]
[405791737,1771312257208,-150.0,0.0002519,2]
[405791738,1771312257217,-150.0,0.0002519,2]
[405791739,1771312257226,-150.0,0.0002519,2]
[405791740,1771312257235,-150.0,0.0002519,2]
[405791741,1771312257245,-150.0,0.0002519,2]
[405791742,1771312257255,-150.0,0.0002519,2]
[405791743,1771312257264,-150.0,0.0002519,2]
[405791744,1771312257274,-150.0,0.0002519,2]
[405791745,1771312257284,-3491.0,0.0002519,2]
[405791746,1771312257294,-617.0,0.0002519,2]
[405791747,1771312257304,-1338.0,0.0002519,2]
[405791748,1771312257313,-1164.0,0.0002519,2]
[405791749,1771312257324,-1275.0,0.0002519,2]
[405791750,1771312257333,-406815.85,0.000252,2]
[405791751,1771312257343,-355.8013884,0.00025259,79]
[405791752,1771312257353,-306.0,0.00025373,7]
[405791753,1771312257363,-49615.12957072,0.0002539,2]
[405791754,1771312257372,-4070.51,0.00025571,30]
[405791755,1771312257382,-502.0,0.00025591,9]
[405791756,1771312257391,-461.91028707,0.00025652,86]
[405791757,1771312257401,-500.0,0.00025672,7]
[405791758,1771312257411,-500.0,0.00025672,7]
[405791759,1771312257421,-315.07,0.00025771,7]
[405791760,1771312257430,-355.8013884,0.00025784,86]
[405791761,1771312257440,-1209.0,0.00025958,2]
[405791762,1771312257450,-412.0,0.00025958,2]
[405791763,1771312257460,-5973.0,0.00025958,2]
[405791764,1771312257469,-601.95167502,0.0002599,2]
[405791765,1771312257479,-4531.08257578,0.00026,2]
[405791766,1771312257489,-216.86508435,0.00026,2]
[405791767,1771312257498,-233.3,0.00026,2]
[405791768,1771312257508,-461.91028707,0.00026165,94]
[405791769,1771312257518,-502.0,0.00026307,10]
[405791770,1771312257528,-355.8013884,0.0002631,94]
[405791771,1771312257537,-266.45,0.000264,7]
[405791772,1771312257547,-27526.37085843,0.000264,2]
[405791773,1771312257557,-544.92,0.000265,90]
[405791774,1771312257566,-437.35812667,0.000266,30]
[405791775,1771312257576,-360.45457926,0.00026667,30]
[405791776,1771312257585,-162.96911131,0.00026678,120]
[405791777,1771312257594,-461.91028707,0.00026679,102]
[405791778,1771312257603,-300.0,0.00026699,10]
[405791779,1771312257613,-666.0,0.00026699,2]
[405791780,1771312257622,-300.0,0.00026699,10]
[405791781,1771312257631,-325.08121142,0.00026699,10]
[405791782,1771312257641,-355.8013884,0.00026836,102]
[405791783,1771312257651,-500.0,0.00026937,120]
[405791784,1771312257660,-321.01,0.00026986,120]
[405791785,1771312257670,-300.0,0.00026999,10]
[405791786,1771312257681,-502.75243677,0.00026999,2]
[405791787,1771312257690,-300.0,0.00026999,10]
[405791788,1771312257700,-300.0,0.00026999,10]
[405791789,1771312257710,-250.0,0.00027,2]
[405791790,1771312257719,-1036.49544833,0.00027,2]
[405791791,1771312257729,-530.0,0.00027,2]
[405791792,1771312257740,-469.56636817,0.00027,30]
[405791793,1771312257750,-550.0,0.00027,2]
[405791794,1771312257761,-2000.0,0.00027,2]
[405791795,1771312257770,-300.0,0.00027009,10]
[405791796,1771312257780,-300.0,0.00027009,10]
[405791797,1771312257789,-2369.085164,0.0002701,2]
[405791798,1771312257799,-502.0,0.00027023,11]
[405791799,1771312257809,-299.0,0.00027064,7]
[405791800,1771312257819,-3695.39,0.00027123,2]
[405791801,1771312257828,-153.97009568,0.00027132,110]
[405791802,1771312257838,-162.80410305,0.00027193,110]
[405791803,1771312257848,-1500.0,0.00027316,7]
[405791804,1771312257858,-355.8013884,0.00027362,110]
[405791805,1771312257868,-150.0,0.00027369,2]
[405791806,1771312257878,-724.84615385,0.0002737,2]
[405791807,1771312257888,-260.88455291,0.0002737,2]
[405791808,1771312257897,-4119.22740333,0.0002739,2]
[405791809,1771312257907,-8138.58514695,0.0002739,2]
[405791810,1771312257917,-570.61120273,0.0002739,120]
[405791811,1771312257926,-500.0,0.00027397,2]
[405791812,1771312257937,-500.0,0.00027397,2]
[405791813,1771312257948,-220.27357098,0.00027397,2]
[405791814,1771312257958,-1000.0,0.00027397,30]
[405791815,1771312257967,-1000.0,0.00027397,30]
[405791816,1771312257977,-1000.0,0.00027397,30]
[405791817,1771312257987,-1000.0,0.00027397,30]
[405791818,1771312257996,-1000.0,0.00027397,30]
[405791819,1771312258006,-1000.0,0.00027397,30]
[405791820,1771312258016,-274.16433771,0.00027397,30]
[405791821,1771312258026,-220.48493733,0.00027397,2]
[405791822,1771312258036,-500.0,0.00027397,120]
[405791823,1771312258045,-1761.80394616,0.00027397,2]
[405791824,1771312258055,-1000.0,0.00027397,20]
[405791825,1771312258065,-864.26,0.00027397,2]
[405791826,1771312258075,-300.0,0.00027397,2]
[405791827,1771312258087,-899.142246,0.00027397,2]
[405791828,1771312258098,-899.142246,0.00027397,2]
[405791829,1771312258108,-899.142246,0.00027397,2]
[405791830,1771312258118,-899.142246,0.00027397,2]
[405791831,1771312258127,-520.57,0.00027397,2]
[405791832,1771312258138,-151.0,0.00027397,2]
[405791833,1771312258147,-151.0,0.00027397,2]
[405791834,1771312258157,-1930.66,0.000274,14]
[405791835,1771312258167,-201.6923428,0.000275,2]
[405791836,1771312258177,-550.97761121,0.000275,2]
[405791837,1771312258186,-874.71,0.000275,15]
[405791838,1771312258195,-502.0,0.00027739,11]